Cogmind - Beta 14 @@@ ROGUE MODE // 2024.11.24 @ 14:38:46 Player: Fangrelle Result: Destroyed by as-31007 with Assembled Heavy Rifle Performance ------------- Evolutions (0) 0 Regions Visited (2) 400 Robots Destroyed (10) 50 Value Destroyed (253) 253 Prototype IDs (0) 0 Alien Tech Used (0) 0 Bonus (-37) -37 TOTAL SCORE: 666 Bonus ------- Friendly Fire -37 Cogmind --------- Core Integrity 0/250 Matter 22/300 Energy 97/100 System Corruption 4% Temperature Cool (0) Movement Core (1350) Ox26 Location -10/Mines Parts ------- > --- POWER (1) -------- (None) > --- PROPULSION (2) --- (None) > --- UTILITY (2) ------ Huge Storage Unit > --- WEAPON (2) ------- Light Assault Rifle > --- INVENTORY (25) --- Compact Wheel Medium Storage Unit Visual Processing Unit Sensor Array Utility Shielding Peak State ------------ > --- POWER ------------ Ion Engine > --- PROPULSION ------- Light Treads Light Treads > --- UTILITY ---------- Huge Storage Unit Core Shielding > --- WEAPON ----------- Assault Rifle Light Cannon > --- INVENTORY -------- Aluminum Leg Wheel Compact Wheel Medium Storage Unit Visual Processing Unit Utility Shielding Assault Rifle Light Assault Rifle Grenade Launcher [Rating: 8] Favorites ----------- Power Ion Engine Engine Ion Engine Propulsion Light Treads Treads Light Treads Leg Aluminum Leg Wheel Wheel Utility Core Shielding Storage Medium Storage Unit Protection Core Shielding Weapon Assault Rifle Ballistic Gun Assault Rifle Ballistic Cannon Light Cannon Launcher Grenade Launcher Build | -11 -10 -10 ------- Run | Yrd Mat Min Slots Evolved . | . . . Power . | . . . Propulsion . | . . . Utility . | . . . Weapon . | . . . Parts Attached 13 | . 7 6 Power . | . . . Engine . | . . . Core . | . . . Reactor . | . . . Propulsion 4 | . 2 2 Treads 2 | . 2 . Leg 1 | . . 1 Wheel 1 | . . 1 Hover . | . . . Flight . | . . . Utility 3 | . 3 . Device . | . . . Storage 2 | . 2 . Processor . | . . . Hackware . | . . . Protection 1 | . 1 . Artifact . | . . . Weapon 6 | . 2 4 Energy Gun . | . . . Energy Cannon . | . . . Ballistic Gun 4 | . 1 3 Ballistic Cannon 1 | . 1 . Launcher 1 | . . 1 Special Weapon . | . . . Impact Weapon . | . . . Slashing Weapon . | . . . Piercing Weapon . | . . . Special Melee Weapon . | . . . Unidentified Prototypes . | . . . Parts Lost 9 | . . 9 Power 1 | . . 1 Propulsion 4 | . . 4 Utility 1 | . . 1 Weapon 3 | . . 3 Highest Loss Streak 9 | . . 9 To Critical Strikes . | . . . Average Slot Usage (%) 94 | . 96 75 Engine 13 | . 14 9 Treads 23 | . 25 11 Leg 2 | . 2 2 Storage 15 | . 16 14 Protection 9 | . 8 14 Ballistic Gun 16 | . 17 9 Ballistic Cannon 10 | . 10 7 Peak Build Rating 8 | . 8 8 Average Rating 6 | . 6 6 On Entrance 6 | 6 6 8 Naked Turns . | . . . Heaviest Build 91 | 13 91 86 Greatest Support 40 | 20 40 10 Greatest Overweight (x) 8 | . 2 8 Average Overweight (x) . | . . 8 Largest Inventory Capacity 25 | . 25 25 Average Capacity 12 | . 10 25 Most Carried 10 | . 10 10 Average Carried 6 | . 6 8 Final Capacity 25 | 8 25 25 Final Carried 10 | 6 10 5 Class Distribution -------------------- 100% | Mutant Dominant Class ---------------- Mutant | -10/Materials Mutant | -10/Mines Resources | -11 -10 -10 ----------- Run | Yrd Mat Min Matter Collected 312 | 200 87 25 Remotely . | . . . Salvage Created 286 | . 210 76 Parts 20 | . 18 2 Haulers Intercepted . | . . . Recyclers Shooed . | . . . Parts Field Recycled . | . . . Retrieved Matter . | . . . Parts Self-Destructed . | . . . Prevented . | . . . Kills | -11 -10 -10 ------- Run | Yrd Mat Min Combat Hostiles Destroyed 18 | . 7 11 Guns 3 | . 3 . Cannons 6 | . 4 2 AOE 9 | . . 9 Classes Destroyed 5 | . 4 1 Worker 1 | . 1 . Watcher 1 | . 1 . Swarmer 3 | . 3 . Grunt 5 | . 4 1 Assembled 10 | . . 10 Best Kill Streak 11 | . 6 11 Combat Bots Only 11 | . 3 11 Max Kills in Single Turn 3 | . 1 3 Gunslinging . | . . . Exploded 3 | . . 3 Melee . | . . . Uniques/NPCs Destroyed . | . . . Combat | -11 -10 -10 -------- Run | Yrd Mat Min Hostile Shots Fired 96 | . 41 55 Missed 25 | . 12 13 Damage Taken 1313 | . 296 1017 Core 261 | . 49 212 Absorbed by Shields . | . . . Redirected to Shielding 52 | . 5 47 Core Remaining (%) 100 | 100 . . Volleys Fired 43 | . 29 14 Largest 2 | . 2 2 Hottest 65 | . 55 65 Shots Fired 80 | . 58 22 Gun 43 | . 35 8 Cannon 32 | . 23 9 Launcher 5 | . . 5 Special . | . . . Kinetic 75 | . 58 17 Thermal . | . . . Explosive 5 | . . 5 Electromagnetic . | . . . Robot Hit Streak 14 | . 7 14 Robot Miss Streak 6 | . 6 1 Penetration Max . | . . . Secondary Targets . | . . . Shots Hit Robots 48 | . 33 15 Core Hits 43 | . 12 31 Critical Kills . | . . . Critical Parts Destroyed . | . . . Critical Strikes . | . . . Melee Attacks . | . . . Impact . | . . . Slashing . | . . . Piercing . | . . . Sneak Attacks . | . . . Combat Hostiles . | . . . Follow-up Attacks . | . . . Damage Inflicted 1185 | . 433 752 Guns 302 | . 222 80 Cannons 278 | . 206 72 Explosions 600 | . . 600 Melee . | . . . Ramming 5 | . 5 . Kinetic 580 | . 428 152 Thermal . | . . . Explosive 600 | . . 600 Electromagnetic . | . . . Impact . | . . . Slashing . | . . . Piercing . | . . . Highest Corruption 4 | . . 4 Average Corruption 4 | . . 4 Corruption Purged . | . . . Corruption Blocked . | . . . Effects 1 | . . 1 Matter Fused 1 | . . 1 Overload Shots . | . . . Overflow Damage 1 | . . 1 Projectiles . | . . . Explosions 1 | . . 1 Melee . | . . . Knockbacks 4 | . 3 1 Impact . | . . . Kinetic 4 | . 3 1 Secondary . | . . . Self-Inflicted Damage 67 | . . 67 Shots 2 | . . 2 Rammed 1 | . 1 . Targets Rammed 1 | . 1 . Kicked . | . . . Crushed . | . . . Highest Temperature 35 | . 8 35 Average Temperature 12 | . 3 21 Received Heat Transfer 167 | . 120 47 Siege Activations . | . . . Robots Corrupted . | . . . Combat Hostiles . | . . . Parts Fried . | . . . Impact Corruptions . | . . . Robots Melted . | . . . Combat Hostiles . | . . . Parts Melted . | . . . Heat Transferred . | . . . Parts Sabotaged . | . . . Parts Stolen . | . . . Parts Stripped . | . . . Power Chain Reactions . | . . . Alert | -11 -10 -10 ------- Run | Yrd Mat Min Peak Influence 298 | . 298 101 Initial 49 | . . 49 Average 124 | . 131 69 Maximum Alert Level 1 | . 1 . Low Security (%) 78 | . 76 100 Level 1 21 | . 23 . Level 2 . | . . . Level 3 . | . . . Level 4 . | . . . Level 5 . | . . . High Security . | . . . Max Security . | . . . Squads Dispatched 2 | . 2 . Investigation 1 | . 1 . Extermination . | . . . Reinforcement 1 | . 1 . Assault . | . . . Garrison . | . . . Intercept . | . . . Searches Triggered . | . . . Construction Impeded . | . . . Haulers Reinforced . | . . . Active Scanning Responses . | . . . Cargo Convoy Interrupts . | . . . Stealth | -11 -10 -10 --------- Run | Yrd Mat Min Distress Signals 1 | . 1 . Communications Jammed . | . . . Distress Signals . | . . . Times Spotted 32 | . 11 21 Peak Tracking Total 12 | . 3 12 Tactical Retreats 1 | . 1 . Traps | -11 -10 -10 ------- Run | Yrd Mat Min Traps Triggered . | . . . Indirectly . | . . . Trap Hack Attempts . | . . . Triggered . | . . . Disarmed . | . . . Reprogrammed . | . . . Reused . | . . . Traps Extracted . | . . . Installed . | . . . Triggered . | . . . Machines | -11 -10 -10 ---------- Run | Yrd Mat Min Machines Disabled 1 | . 1 . Max in Single Turn 1 | . 1 . Machines Repaired . | . . . Machines Dismantled . | . . . Machines Sabotaged . | . . . Overloaded Fab Kills . | . . . Hacking | -11 -10 -10 --------- Run | Yrd Mat Min Machines Accessed 5 | . 5 . Terminals 4 | . 4 . Fabricators . | . . . Repair Stations . | . . . Recycling Units 1 | . 1 . Scanalyzers . | . . . Garrison Access . | . . . Total Hacks 15 | . 15 . Successful 6 | . 6 . Failed 9 | . 9 . Catastrophic . | . . . Database Lockouts . | . . . Manual 13 | . 13 . Terminals 12 | . 12 . Fabricators . | . . . Repair Stations . | . . . Recycling Units 3 | . 3 . Scanalyzers . | . . . Garrison Access . | . . . Terminal Hacks . | . . . Fabricator Hacks . | . . . Repair Station Hacks . | . . . Recycling Unit Hacks . | . . . Scanalyzer . | . . . Garrison Access Hacks . | . . . Unauthorized Hacks 6 | . 6 . Terminals 5 | . 5 . Assimilate 1 | . 1 . Botnet 3 | . 3 . Operators 1 | . 1 . Fabricators . | . . . Repair Stations . | . . . Recycling Units 1 | . 1 . Tunnel 1 | . 1 . Scanalyzers . | . . . Garrison Access . | . . . Data Cores Recovered . | . . . Used . | . . . Hacking Detections 5 | . 5 . Full Trace Events . | . . . Feedback Events . | . . . Feedback Blocked . | . . . Robot Schematics Acquired . | . . . Robots Built . | . . . Authchips . | . . . Time . | . . . Total Robot Build Rating . | . . . Part Schematics Acquired . | . . . Parts Built . | . . . Authchips . | . . . Time . | . . . Total Part Build Rating . | . . . Parts Repaired . | . . . Time . | . . . Parts Recycled . | . . . Recycled Matter . | . . . Retrieved Matter . | . . . Retrieved Components . | . . . Parts Scanalyzed . | . . . Part Schematics Acquired . | . . . Parts Damaged . | . . . Bothacking | -11 -10 -10 ------------ Run | Yrd Mat Min Used RIF Installer . | . . . Robots Hacked . | . . . Non-combat . | . . . Combat . | . . . Robot Hacks Applied . | . . . Relay Couplers Released . | . . . Fabnet Peak Effective % . | . . . Robots Rewired . | . . . Allies Hacked . | . . . Hacks Repelled . | . . . Allies | -11 -10 -10 -------- Run | Yrd Mat Min Total Allies . | . . . Largest Group . | . . . Highest-Rated Group . | . . . Highest-Rated Ally . | . . . Total Orders . | . . . Ally Attacks . | . . . Total Damage . | . . . Kills . | . . . Allies Corrupted . | . . . Allies Melted . | . . . Intel | -11 -10 -10 ------- Run | Yrd Mat Min Robot Analysis Total . | . . . Derelict Logs Recovered . | . . . Drone Launches . | . . . Drone Recoveries . | . . . Exploration | -11 -10 -10 ------------- Run | Yrd Mat Min Turns Passed 540 | . 484 56 Spaces Moved 237 | 1 232 4 Core . | . . . Treads 190 | . 190 . Legs 43 | 1 42 . Wheels 4 | . . 4 Hover . | . . . Flight . | . . . Fastest Speed 120 | 120 120 200 Average Speed 161 | 120 161 200 Slowest Speed 320 | 120 320 200 Overloaded Moves . | . . . Propulsion Burnouts . | . . . Robots Hopped . | . . . Cave-ins Triggered . | . . . Exploration Rate (%) 21 | 2 54 7 Regions Visited 2 Branch Regions 1 Pre-discovered Areas 1 | . 1 . Known Exits Taken . | . . . Unknown Exits Taken 2 | 1 1 . Scrap Searched . | . . . Spaces Dug . | . . . Terrain Destroyed 25 | . . 25 Melee . | . . . Projectile . | . . . AOE 25 | . . 25 Terrain Rammed . | . . . Walls Destroyed . | . . . Machines Disabled . | . . . Actions | -11 -10 -10 --------- Run | Yrd Mat Min Total 317 | . 285 32 Wait 14 | . 7 7 Move 235 | . 231 4 Hop . | . . . Pick Up 5 | . 5 . Fast Attach 3 | . 3 . Attach 5 | . . 5 Detach 1 | . 1 . Swap 5 | . 4 1 Drop 5 | . 4 1 Fire 43 | . 29 14 Melee . | . . . Ram . | . . . Kick . | . . . Crush 1 | . 1 . Escape Stasis . | . . . Rewire . | . . . Trap . | . . . Miscellaneous . | . . . Route ------- -11/Scrapyard -10/Materials (discovered 2 exits: [*Mat] / [*Min]) -10/Mines History --------- Turn | Location | Event 1 | -11/Scrapyard | Discovered new exit (range 0) 1 | -11/Scrapyard | Entered Materials 304 | -10/Materials | Build established: Mutant 337 | -10/Materials | Discovered new exit (range 13) 425 | -10/Materials | Discovered new exit (range 7) 485 | -10/Materials | Entered Mines 486 | -10/Mines | Assembled infested the area 491 | -10/Mines | Assisted by a Guerilla fighting off Assembled 513 | -10/Mines | Core integrity fell below 50% 522 | -10/Mines | Core integrity fell below 20% 532 | -10/Mines | Destroyed 11 combat bots 541 | -10/Mines | Destroyed by as-31007 with Assembled Heavy Rifle Last Messages --------------- 00509_ as-71192 destroyed. 00511_ System corrupted: Matter fused (-5). 00511_ as-82529 destroyed. 00512_ Lgt. Treads destroyed. 00512_ Lgt. Cannon destroyed. 00512_ D-53 Grenadier destroyed. 00515_ The unstable cave ceiling collapses. 00516_ Dropped Grenade Launcher. 00523_ D-53 Grenadier destroyed. 00523_ Assault Rifle destroyed. 00525_ Ion Engine destroyed. 00527_ Aluminum Leg destroyed. 00530_ Acquired 25 matter. 00531_ The unstable cave ceiling collapses. 00536_ Wheel destroyed. 00537_ The unstable cave ceiling collapses. 00540_ Assault Rifle destroyed. 00541_ The unstable cave ceiling collapses. 00541_ U-05 Engineer lays Concrete. 00541_ Core Shielding destroyed. Map ----- +----------------------------------------------------+ | ?????????????????????????????????????????????????? | | ?????????????????????????????????????????????????? | | ?????????????????????????????????????????????????? | | ?????????????????????????????????????????????????? | | ?????????????????????????????????????????????????? | | ?????????????????????????????????????????????????? | | ?????????????????????????????????????????????????? | | ?????????????????????????????????????????????????? | | ?????????????????????????????????????????????????? | | ?????????????????????????????????????????????????? | | ????????????????????????a ???????????????????????? | | ???????????????????????% %???????????????????????? | | ???????????????????????% ???????????????????????? | | ??????????????????????## ???????????????????????? | | ?????????????????????? ???????????????????????? | | ????????????????????### < ?#?????????????????????? | | ???????????????????## # ? ?????????????????????? | | ???????????????????### %# ?????????????????????? | | ???????????????????? u ! ?????????????????????? | | ????????????????????? =%!#?????????????????????? | | ??????????????????#???# = #?????????????????????? | | ??????????????????# #?# ##????????????????????? | | ??????????????????##; # ###??????????????????? | | ??????????????????# ; # ###????????????????? | | ????????????????????# a #????????????????? | | ????????????????????#% @ ##???????????????? | | ???????????????????##% a #???????????????? | | ???????????????????# ## ##??????????????? | | ???????????????????#??# #??????????????? | | ????????????????????# #??????????????? | | ????????????????????# #?????????????? | | ????????????????????#### #?????????????? | | ???????????????????????# ##?????????????? | | ???????????????????????## # #######??????????????? | | ????????????????????????##?#?????????????????????? | | | | | | | | | | | | | | | | | | | | | | | | | | | | | | | +----------------------------------------------------+ Best States ------------- Heat Dissipation 25 Energy Generation 10 Energy Capacity 250 Matter Stores 300 Matter Capacity 300 Sight Range 16 Terrain Scan Density 10 Core Shielding 20 Evasion (%) 55 Recoil Reduction 2 Item Schematics ----------------- None Robot Schematics ------------------ None Fabricated ------------ Nothing Alien Tech Used ----------------- None Achievements -------------- None Challenges ------------ None Game ------ Seed AntigravGravityFlamer Manual? 0 Play Time 00:06:52 Cumulative 133.1 hours Start 2024.11.24 @ 14:33:41 End 2024.11.24 @ 14:38:46 Sessions 1 Manual Loads 0 Difficulty Rogue Special Mode None Game No. 251 Rogue 251 Adventurer 0 Explorer 0 Win Type - Total 0 Types 0/0/0/0/0/0/0/0/0 Lore% 43 Gallery% 41 Achievement% 36 Wizard Run 0 Options --------- Layout 0 ASCII 0 Keyboard 0 Movement Mouse Keybinds 0 Fullscreen 1 Font 24/Smallcaps Map View 91x25 Zoom Use 100% Tactical HUD 1 Map Filters NONE Filters NONE Steam 1 RUN: a4bd33d0-7ab8-45d6-a3e1-64bdc49ce817